bitfinex/quotes_BTCUSD_20241208
["timestamp","ask_amount","ask_price","bid_price","bid_amount"]
[1733653252263,0.68441372,99451.0,99450.0,0.0017316]
[1733653252684,0.67841372,99451.0,99450.0,0.0017316]
[1733653253035,0.69241372,99451.0,99450.0,0.0017316]
[1733653253244,0.68341372,99451.0,99450.0,0.0017316]
[1733653253709,0.69241372,99451.0,99450.0,0.0017316]
[1733653257223,0.82637156,99451.0,99450.0,0.0017316]
[1733653257636,0.85768096,99451.0,99450.0,0.0017316]
[1733653257829,1.1456894,99451.0,99450.0,0.0017316]
[1733653259351,1.1406894,99451.0,99450.0,0.0017316]
[1733653259572,1.1316894,99451.0,99450.0,0.0017316]
[1733653259807,1.1476894,99451.0,99450.0,0.0017316]
[1733653260678,1.16779238,99451.0,99450.0,0.0017316]
[1733653261369,1.43825479,99451.0,99450.0,0.0017316]
[1733653261761,1.44587455,99451.0,99450.0,0.0017316]
[1733653262223,1.44587455,99451.0,99446.0,10.43089021]
[1733653262224,0.20695784,99447.0,99446.0,10.43089021]
[1733653262444,0.78995675,99447.0,99446.0,10.43089021]
[1733653262617,1.3484276,99447.0,99446.0,10.43089021]
[1733653262825,1.3560319,99447.0,99446.0,10.43089021]
[1733653263194,1.08556949,99447.0,99446.0,10.43089021]
[1733653263467,1.18841124,99447.0,99446.0,10.43089021]
[1733653263664,1.17941124,99447.0,99446.0,10.43089021]
[1733653264202,1.18841124,99447.0,99446.0,10.43089021]
[1733653264566,1.19741124,99447.0,99446.0,10.43089021]
[1733653264987,1.18841124,99447.0,99446.0,10.43089021]
[1733653265160,1.45896207,99447.0,99446.0,10.43089021]
[1733653265564,1.46035777,99447.0,99446.0,10.43089021]
[1733653265888,1.46795789,99447.0,99446.0,10.43089021]
[1733653268251,1.19740706,99447.0,99446.0,10.43089021]
[1733653268473,1.19740706,99447.0,99446.0,10.41334645]
[1733653270642,1.19447694,99447.0,99446.0,10.41334645]
[1733653270846,1.19447694,99447.0,99446.0,10.28764462]
[1733653271051,1.19447694,99447.0,99446.0,10.16124282]
[1733653271673,1.46497337,99447.0,99446.0,10.06068782]
[1733653271901,1.99867631,99447.0,99446.0,9.85366698]
[1733653272122,1.84054934,99447.0,99446.0,9.85366698]
[1733653272609,1.84054934,99447.0,99446.0,9.83355598]
[1733653272836,1.84054934,99447.0,99446.0,9.77322298]
[1733653273286,1.84054934,99447.0,99446.0,9.75311198]
[1733653273508,1.84054934,99447.0,99446.0,9.73300098]
[1733653273645,1.84054934,99447.0,99446.0,9.65255698]
[1733653273863,1.85628542,99447.0,99446.0,9.65255698]
[1733653274079,1.85628542,99447.0,99446.0,9.6022243]
[1733653274475,1.85628542,99447.0,99446.0,9.5821133]
[1733653274679,1.85628542,99447.0,99446.0,9.5620023]
[1733653275354,1.85628542,99447.0,99446.0,9.4655593]
[1733653275557,1.85628542,99447.0,99446.0,9.4454483]
[1733653276233,2.12657753,99447.0,99446.0,9.31467162]
[1733653276464,1.72912681,99447.0,99446.0,9.31467162]
[1733653276669,1.74167241,99447.0,99446.0,9.21078202]
[1733653276872,2.12451934,99447.0,99446.0,9.19067102]
[1733653277304,1.4588347,99447.0,99446.0,9.19067102]
[1733653277515,1.51916477,99447.0,99446.0,9.19067102]
[1733653277734,1.56916477,99447.0,99446.0,9.19067102]
[1733653277962,1.53785537,99447.0,99446.0,9.19067102]
[1733653278188,1.71800378,99447.0,99446.0,9.19067102]
[1733653278408,1.18430378,99447.0,99446.0,9.19067102]
[1733653278655,1.33431713,99447.0,99446.0,9.19067102]
[1733653278871,1.16955525,99447.0,99446.0,9.19067102]
[1733653279076,1.17716488,99447.0,99446.0,9.19067102]
[1733653279278,1.16955525,99447.0,99446.0,9.19067102]
[1733653279689,1.39476347,99447.0,99446.0,9.19067102]
[1733653280112,1.16955525,99447.0,99446.0,9.11498546]
[1733653280344,1.20079555,99447.0,99446.0,9.11498546]
[1733653280751,1.2084064,99447.0,99446.0,9.01443046]
[1733653281400,1.74129693,99447.0,99446.0,8.99393046]
[1733653281546,1.74129693,99447.0,99446.0,8.89337546]
[1733653285571,1.74129693,99447.0,99446.0,7.7848869]
[1733653285952,1.64745518,99447.0,99446.0,7.35117113]
[1733653286152,2.31330011,99447.0,99446.0,7.27924713]
[1733653286343,2.71047301,99447.0,99446.0,7.26758713]
[1733653286578,1.91214376,99447.0,99446.0,6.91736713]
[1733653286775,1.47555081,99447.0,99446.0,4.51736713]
[1733653286930,1.51582549,99447.0,99446.0,4.36781213]
[1733653287131,1.52482549,99447.0,99446.0,4.36781213]
[1733653287539,1.52482549,99447.0,99446.0,4.28736813]
[1733653287860,1.52482549,99447.0,99446.0,4.26225713]
[1733653288113,1.52482549,99447.0,99446.0,4.22607714]
[1733653288516,1.52482549,99447.0,99446.0,4.20596614]
[1733653288722,1.52482549,99447.0,99446.0,4.18585514]
[1733653288928,1.52482549,99447.0,99446.0,4.16574414]
[1733653289228,1.52482549,99447.0,99446.0,4.07518954]
[1733653289588,1.52482549,99447.0,99446.0,3.97463454]
[1733653289817,1.91881282,99447.0,99446.0,3.97463454]
[1733653290219,1.75814682,99447.0,99446.0,3.97463454]
[1733653290419,1.62393331,99447.0,99446.0,3.97463454]
[1733653291094,3.48498231,99447.0,99446.0,3.46528734]
[1733653291382,2.78597109,99447.0,99446.0,3.34480387]
[1733653291575,2.78597109,99447.0,99446.0,3.26435987]
[1733653291576,2.78069978,99447.0,99446.0,3.26435987]
[1733653291788,2.78069978,99447.0,99446.0,3.19439887]
[1733653291984,2.80369978,99447.0,99446.0,3.19439887]
[1733653292531,2.80369978,99447.0,99446.0,3.17428787]
[1733653292737,2.80369978,99447.0,99446.0,3.13406587]
[1733653293077,1.87454178,99447.0,99446.0,3.09384387]
[1733653293304,2.94126278,99447.0,99446.0,3.04350768]
[1733653293514,2.94126278,99447.0,99446.0,3.02339668]
[1733653293720,2.94126278,99447.0,99446.0,2.94392229]
[1733653293961,2.92547578,99447.0,99446.0,2.90370029]
[1733653294171,2.92547578,99447.0,99446.0,2.85947029]
[1733653294376,2.92547578,99447.0,99446.0,2.83242029]
[1733653294600,2.92547578,99447.0,99446.0,2.7038873]
[1733653294819,2.92547578,99447.0,99446.0,2.6636653]
[1733653295271,2.92547578,99447.0,99446.0,1.92197289]
[1733653295272,3.17547578,99447.0,99446.0,1.92197289]
[1733653295515,3.17547578,99447.0,99446.0,1.84674447]
[1733653295733,3.16647578,99447.0,99446.0,1.25103712]
[1733653295933,3.15747578,99447.0,99446.0,0.74767522]
[1733653296141,3.15747578,99447.0,99446.0,0.67461737]
[1733653296142,3.17547578,99447.0,99446.0,0.67461737]
[1733653296581,3.15747578,99447.0,99446.0,0.15114247]
[1733653296798,3.15747578,99447.0,99373.0,0.083]
[1733653296799,0.36175984,99391.0,99373.0,0.083]
[1733653297000,0.46178935,99391.0,99373.0,0.083]
[1733653297205,0.77093131,99391.0,99373.0,0.083]
[1733653298082,0.77093131,99391.0,99390.0,0.0023061]
[1733653298528,0.77993131,99391.0,99390.0,0.0023061]
[1733653299006,0.55917147,99391.0,99390.0,0.0023061]
[1733653299146,0.55917147,99391.0,99390.0,0.1307061]
[1733653299147,0.57933751,99391.0,99390.0,0.1307061]
[1733653299510,0.57233751,99391.0,99390.0,0.1307061]
[1733653299910,0.5893958,99391.0,99390.0,0.1307061]
[1733653300043,0.5803958,99391.0,99390.0,0.1307061]
[1733653300429,0.5733958,99391.0,99390.0,0.1307061]
[1733653300637,0.5793958,99391.0,99390.0,0.1307061]
[1733653301716,0.58705364,99391.0,99390.0,0.0023061]
[1733653301937,0.61005364,99391.0,99390.0,0.0023061]
[1733653302168,0.61905364,99391.0,99390.0,0.0023061]
[1733653302405,0.61005364,99391.0,99390.0,0.0023061]
[1733653302639,0.61905364,99391.0,99390.0,0.0023061]
[1733653306348,0.60405364,99391.0,99390.0,0.0023061]
[1733653306639,0.61105364,99391.0,99390.0,0.0023061]
[1733653306864,0.62005364,99391.0,99390.0,0.0023061]
[1733653312250,0.71029524,99391.0,99390.0,0.0023061]
[1733653312720,0.62005364,99391.0,99390.0,0.0023061]
[1733653312968,0.71029563,99391.0,99390.0,0.0023061]
[1733653313167,0.62005364,99391.0,99390.0,0.0023061]
[1733653314572,0.71030552,99391.0,99390.0,0.0023061]
[1733653315234,0.62005364,99391.0,99390.0,0.0023061]
[1733653317384,0.75546328,99391.0,99390.0,0.0023061]
[1733653318726,0.65140736,99391.0,99390.0,0.0023061]
[1733653319145,0.75546381,99391.0,99390.0,0.0023061]
[1733653319349,0.83190614,99391.0,99390.0,0.0023061]
[1733653322201,0.7561639,99391.0,99390.0,0.0023061]
[1733653322450,0.62075706,99391.0,99390.0,0.0849061]
[1733653322670,0.5893958,99391.0,99390.0,0.0849061]
[1733653325121,0.5733958,99391.0,99390.0,0.0849061]
[1733653325332,0.5823958,99391.0,99390.0,0.0849061]
[1733653325549,0.4323958,99391.0,99390.0,0.0849061]
[1733653325774,0.33236629,99391.0,99390.0,0.1313061]
[1733653326678,0.328308,99391.0,99390.0,0.22465354]
[1733653326890,0.328308,99391.0,99390.0,0.22364747]
[1733653327341,0.322308,99391.0,99390.0,0.22364747]
[1733653327549,0.328308,99391.0,99390.0,0.22364747]
[1733653327981,0.313308,99391.0,99390.0,0.1313061]
[1733653328209,0.322308,99391.0,99390.0,0.1313061]
[1733653328431,0.314308,99391.0,99390.0,0.22364747]
[1733653328844,0.318308,99391.0,99390.0,0.22364747]
[1733653332533,0.318308,99391.0,99390.0,0.17364826]
[1733653332703,0.318308,99391.0,99390.0,0.22364747]
[1733653335610,0.314308,99391.0,99390.0,0.22364747]
[1733653335858,0.315308,99391.0,99390.0,0.22364747]
[1733653337755,0.315308,99391.0,99390.0,0.0023061]
[1733653339283,0.41533751,99391.0,99390.0,0.0023061]
[1733653340484,0.64473751,99391.0,99390.0,0.0023061]
[1733653341461,0.64273751,99391.0,99390.0,0.0023061]
[1733653341918,0.65173751,99391.0,99390.0,0.0023061]
[1733653342381,0.65673751,99391.0,99390.0,0.0023061]
[1733653342783,0.65173751,99391.0,99390.0,0.0023061]
[1733653342991,0.65673751,99391.0,99390.0,0.0023061]
[1733653343788,0.65673751,99391.0,99390.0,0.0023061]
[1733653347017,0.65173751,99391.0,99390.0,0.0023061]
[1733653347444,0.65873751,99391.0,99390.0,0.0023061]
[1733653347699,0.64973751,99391.0,99390.0,0.0023061]
[1733653347918,0.65873751,99391.0,99390.0,0.0023061]
[1733653350640,0.181113,99385.0,99380.0,0.00143842]
[1733653350798,0.10002951,99384.0,99380.0,0.00149581]
[1733653351002,0.11154488,99384.0,99380.0,0.00149581]
[1733653351434,0.41320488,99384.0,99380.0,0.00149581]
[1733653352275,0.42220488,99384.0,99380.0,0.00149581]
[1733653352763,0.42720488,99384.0,99380.0,0.00149581]
[1733653354936,0.43705916,99384.0,99380.0,0.00149581]
[1733653360054,0.181117,99383.0,99380.0,0.00149581]
[1733653360288,0.10002951,99382.0,99380.0,0.00149581]
[1733653360460,0.41319883,99382.0,99380.0,0.00149581]
[1733653361537,0.259021,99381.0,99380.0,0.00149581]
[1733653361889,0.67221975,99381.0,99380.0,0.00149581]
[1733653363653,0.68121975,99381.0,99380.0,0.00149581]
[1733653364766,0.68621975,99381.0,99380.0,0.00149581]
[1733653370841,0.86687759,99381.0,99380.0,0.00149581]
[1733653371055,0.89822562,99381.0,99380.0,0.00149581]
[1733653371283,1.07875557,99381.0,99380.0,0.00149581]
[1733653371499,1.07875557,99381.0,99340.0,0.02077368]
[1733653371500,0.00765784,99365.0,99340.0,0.02077368]
[1733653371726,0.00765784,99365.0,99350.0,0.00103804]
[1733653371727,0.331153,99363.0,99350.0,0.00103804]
[1733653371958,0.181169,99355.0,99350.0,0.00103804]
[1733653372196,0.10002951,99354.0,99350.0,0.00103804]
[1733653372413,0.41350962,99354.0,99350.0,0.00103804]
[1733653373112,0.31348011,99354.0,99350.0,0.26121404]
[1733653373348,0.31348011,99354.0,99353.0,0.22351416]
[1733653373855,0.31948011,99354.0,99353.0,0.22351416]
[1733653374071,0.30966,99354.0,99353.0,0.22351416]
[1733653374284,0.32154603,99354.0,99353.0,0.43046642]
[1733653374516,0.31354603,99354.0,99353.0,0.44043089]
[1733653374928,0.32154603,99354.0,99353.0,0.36247784]
[1733653375462,0.31954603,99354.0,99353.0,0.35251337]
[1733653375667,0.31954603,99354.0,99353.0,0.260172]
[1733653376124,0.31354603,99354.0,99353.0,0.260172]
[1733653376747,0.31554603,99354.0,99353.0,0.260172]
[1733653377314,0.31354603,99354.0,99353.0,0.260172]
[1733653377517,0.31954603,99354.0,99353.0,0.181172]
[1733653377724,0.31354603,99354.0,99353.0,0.181172]
[1733653378133,0.31954603,99354.0,99353.0,0.181172]
[1733653378731,0.32154603,99354.0,99353.0,0.181172]
[1733653379787,0.32154603,99354.0,99353.0,0.2245206]
[1733653379990,0.32154603,99354.0,99353.0,0.22351416]
[1733653383129,0.32154603,99354.0,99353.0,0.181172]
[1733653383331,0.32154603,99354.0,99353.0,0.22351416]
[1733653383534,0.31654603,99354.0,99353.0,0.22351416]
[1733653384159,0.31654603,99354.0,99353.0,0.181172]
[1733653386030,0.30466,99354.0,99353.0,0.181172]
[1733653386396,0.3165942,99354.0,99353.0,0.181172]
[1733653388065,0.3165942,99354.0,99351.0,0.181175]
[1733653388668,0.30466,99354.0,99351.0,0.181175]
[1733653389012,0.10002951,99353.0,99350.0,0.00103804]
[1733653389217,0.40857835,99353.0,99350.0,0.00103804]
[1733653390743,0.40857835,99353.0,99350.0,0.18221504]
[1733653390980,0.41657835,99353.0,99350.0,0.18221504]
[1733653391186,0.40468951,99353.0,99350.0,0.18221504]
[1733653391394,0.01189269,99352.0,99350.0,0.18221504]
[1733653391614,0.10002951,99351.0,99350.0,0.18221504]
[1733653392046,0.11192522,99351.0,99350.0,0.18221504]
[1733653393347,0.11692522,99351.0,99350.0,0.18221504]
[1733653394399,0.11792522,99351.0,99350.0,0.18221504]
[1733653395233,0.11792522,99351.0,99350.0,0.00103804]
[1733653395447,0.34642522,99351.0,99350.0,0.00103804]
[1733653395668,0.64308522,99351.0,99350.0,0.00103804]
[1733653396980,0.64208522,99351.0,99350.0,0.00103804]
[1733653397216,0.63708522,99351.0,99350.0,0.00103804]
[1733653397431,0.64908522,99351.0,99350.0,0.00103804]
[1733653397869,0.64008522,99351.0,99350.0,0.00103804]
[1733653398317,0.64608522,99351.0,99350.0,0.00103804]
[1733653398580,0.64908522,99351.0,99350.0,0.00103804]
[1733653398990,0.83026022,99351.0,99350.0,0.00103804]
[1733653401101,0.85326022,99351.0,99350.0,0.00103804]
[1733653401984,0.93164881,99351.0,99350.0,0.00103804]
[1733653402193,0.88029515,99351.0,99350.0,0.00103804]
[1733653402400,1.06607234,99351.0,99350.0,0.00103804]
[1733653403257,1.07507234,99351.0,99350.0,0.00103804]
[1733653403476,0.89429515,99351.0,99350.0,0.00103804]
[1733653403703,0.88029515,99351.0,99350.0,0.00103804]
[1733653403914,0.89429515,99351.0,99350.0,0.00103804]
[1733653404574,0.94089515,99351.0,99350.0,0.00103804]
[1733653404782,0.93189515,99351.0,99350.0,0.00103804]
[1733653404987,0.93589515,99351.0,99350.0,0.00103804]
[1733653405583,0.94289515,99351.0,99350.0,0.00103804]
[1733653406444,0.93389515,99351.0,99350.0,0.00103804]
[1733653406670,0.94289515,99351.0,99350.0,0.00103804]
[1733653406896,0.92689515,99351.0,99350.0,0.00103804]
[1733653407120,0.93589515,99351.0,99350.0,0.00103804]
[1733653407341,0.94489515,99351.0,99350.0,0.00103804]
[1733653407549,0.93589515,99351.0,99350.0,0.00103804]
[1733653407774,0.92689515,99351.0,99350.0,0.00103804]
[1733653407982,0.94489515,99351.0,99350.0,0.00103804]
[1733653411340,1.17037226,99351.0,99350.0,0.00103804]
[1733653412468,0.89800204,99351.0,99350.0,0.00103804]
[1733653412683,0.42658522,99351.0,99350.0,0.00103804]
[1733653413605,0.41758522,99351.0,99350.0,0.00103804]
[1733653413845,0.58758522,99351.0,99350.0,0.00103804]
[1733653414055,0.59658522,99351.0,99350.0,0.00103804]
[1733653420087,0.57358522,99351.0,99350.0,0.00103804]
[1733653420528,0.42358522,99351.0,99350.0,0.00103804]
[1733653420772,0.42358522,99351.0,99350.0,0.01926014]
[1733653420774,0.32355571,99351.0,99350.0,0.01926014]
[1733653421007,0.32355571,99351.0,99350.0,0.1405023]
[1733653421943,0.30855571,99351.0,99350.0,0.1405023]
[1733653422360,0.31155571,99351.0,99350.0,0.1405023]
[1733653422780,0.31755571,99351.0,99350.0,0.1405023]
[1733653422995,0.31755571,99351.0,99350.0,0.1415023]
[1733653423459,0.31755571,99351.0,99350.0,0.1405023]
[1733653423737,0.31755571,99351.0,99350.0,0.19050151]
[1733653423941,0.30855571,99351.0,99350.0,0.24090788]
[1733653424154,0.30855571,99351.0,99350.0,0.23990151]
[1733653424300,0.30955571,99351.0,99350.0,0.23990151]
[1733653424513,0.30855571,99351.0,99350.0,0.23990151]
[1733653425133,0.30855571,99351.0,99350.0,0.24090151]
[1733653427077,0.30855571,99351.0,99350.0,0.49093102]
[1733653428174,0.0017314,99360.0,99359.0,0.27350237]
[1733653428396,0.0017328,99380.0,99359.0,0.27350237]
[1733653428397,0.0017328,99380.0,99377.0,0.12869921]
[1733653428610,0.0017328,99380.0,99378.0,0.00100602]
[1733653429142,0.0017328,99380.0,99379.0,0.27046616]
[1733653429351,0.0017328,99380.0,99379.0,0.39670871]
[1733653431418,0.0087328,99380.0,99379.0,0.25736734]
[1733653431645,0.0037328,99380.0,99379.0,0.04234216]
[1733653431853,0.0017328,99380.0,99379.0,0.04234216]
[1733653432063,0.0037328,99380.0,99379.0,0.04234216]
[1733653432271,0.0087328,99380.0,99379.0,0.04334823]
[1733653434031,0.0087328,99380.0,99379.0,0.00100607]
[1733653434255,0.0087328,99380.0,99379.0,0.04334823]
[1733653434491,0.11784559,99380.0,99369.0,0.04234216]
[1733653434709,0.10002951,99379.0,99370.0,0.00100621]
[1733653435190,0.10838116,99379.0,99370.0,0.00100621]
[1733653435402,0.10838116,99379.0,99359.0,0.04999921]
[1733653435403,0.181126,99378.0,99366.0,0.04234216]
[1733653435616,0.10002951,99377.0,99366.0,0.04234216]
[1733653435830,0.18113,99376.0,99366.0,0.04234216]
[1733653436069,0.181133,99374.0,99361.0,0.04234216]
[1733653436282,0.10002951,99373.0,99361.0,0.04234216]
[1733653436743,0.10002951,99373.0,99357.0,0.181163]
[1733653436744,0.10834677,99373.0,99357.0,0.181163]
[1733653436945,0.1263,99371.0,99358.0,0.04234216]
[1733653437152,0.10002951,99370.0,99358.0,0.04334843]
[1733653437367,0.10002951,99370.0,99340.0,0.1820605]
[1733653437368,0.10831041,99370.0,99350.0,0.0433802]
[1733653437577,0.10831041,99370.0,99358.0,0.04234216]
[1733653437578,0.181152,99365.0,99358.0,0.04234216]
[1733653437780,0.10002951,99364.0,99358.0,0.04234216]
[1733653438008,0.10834975,99364.0,99358.0,0.04234216]
[1733653439286,0.10834975,99364.0,99350.0,0.00103804]
[1733653439492,0.10834975,99364.0,99351.0,0.00100639]
[1733653439703,0.181153,99363.0,99351.0,0.00100639]
[1733653439929,0.10834975,99364.0,99351.0,0.00100639]
[1733653439930,0.181157,99361.0,99351.0,0.00100639]
[1733653440143,0.10002951,99360.0,99351.0,0.00100639]
[1733653440858,0.00833095,99359.0,99351.0,0.00100639]
[1733653441072,0.10002951,99358.0,99351.0,0.00100639]
[1733653441536,0.00831792,99357.0,99351.0,0.00100639]
[1733653441744,0.10002951,99356.0,99351.0,0.00100639]
[1733653441957,0.10002951,99356.0,99350.0,0.00204448]
[1733653442166,0.00830884,99355.0,99350.0,0.00204448]
[1733653442378,0.10002951,99354.0,99350.0,0.00204448]
[1733653442589,0.10002951,99354.0,99350.0,0.00103804]
[1733653443023,0.00830884,99353.0,99350.0,0.00103804]
[1733653443265,0.10002951,99354.0,99350.0,0.00103804]
[1733653444119,0.00840695,99353.0,99350.0,0.00103804]
[1733653444547,0.10002951,99354.0,99350.0,0.00103804]
[1733653444778,0.10202951,99354.0,99350.0,0.00103804]
[1733653444985,0.00840695,99353.0,99350.0,0.00103804]
[1733653445215,0.00940695,99353.0,99350.0,0.00103804]
[1733653445423,0.00940695,99353.0,99350.0,0.00203804]
[1733653445628,0.00840695,99353.0,99350.0,0.00203804]
[1733653447340,0.00940695,99353.0,99350.0,0.00203804]
[1733653453607,0.00940695,99353.0,99350.0,0.0443802]
[1733653454037,0.001,99353.0,99350.0,0.0443802]
[1733653455435,0.001,99353.0,99352.0,0.22351616]
[1733653456761,0.0017314,99360.0,99359.0,0.181161]
[1733653457007,0.0017314,99360.0,99359.0,0.18216728]
[1733653458296,0.0057314,99360.0,99359.0,0.18216728]
[1733653459038,0.0067314,99360.0,99359.0,0.18216728]
[1733653459687,0.0067314,99360.0,99359.0,0.24085182]
[1733653459901,0.0067314,99360.0,99359.0,0.23984554]
[1733653465573,0.0067314,99360.0,99353.0,0.181172]
[1733653465574,0.0067314,99360.0,99354.0,0.04234216]
[1733653465800,0.0554314,99360.0,99351.0,0.04234216]
[1733653466035,0.00830995,99359.0,99350.0,0.00103804]
[1733653466256,0.083,99358.0,99357.0,0.04234216]
[1733653466690,0.09131297,99358.0,99357.0,0.04234216]
[1733653467437,0.09431297,99358.0,99357.0,0.04234216]
[1733653468741,0.09531297,99358.0,99357.0,0.04234216]
[1733653474619,0.09531297,99358.0,99350.0,0.00103804]
[1733653474620,0.19534248,99358.0,99350.0,0.00103804]
[1733653474920,0.28119351,99357.0,99351.0,0.04234216]
[1733653475139,0.083,99356.0,99351.0,0.04234216]
[1733653475375,0.10002951,99355.0,99351.0,0.04234216]
[1733653475830,0.00835385,99354.0,99351.0,0.04234216]
[1733653475964,0.10838336,99354.0,99351.0,0.04234216]
[1733653476406,0.0767,99352.0,99350.0,0.00103804]
[1733653476611,0.10002951,99351.0,99350.0,0.00103804]
[1733653476836,0.10832315,99351.0,99350.0,0.00103804]
[1733653478757,0.11832315,99351.0,99350.0,0.00103804]
[1733653479164,0.11132315,99351.0,99350.0,0.00103804]
[1733653479578,0.12032315,99351.0,99350.0,0.00103804]
[1733653495387,0.42228315,99351.0,99350.0,0.00103804]
[1733653499626,0.51845212,99351.0,99350.0,0.00103804]
[1733653499749,0.42228315,99351.0,99350.0,0.00103804]
[1733653502328,0.50188315,99351.0,99350.0,0.00103804]
[1733653506280,0.50188315,99351.0,99342.0,0.0386845]
[1733653506488,0.362354,99350.0,99342.0,0.0386845]
[1733653506701,0.362354,99350.0,99342.0,0.03885691]
[1733653506702,0.181181,99348.0,99342.0,0.03885691]
[1733653506915,0.10002951,99347.0,99342.0,0.03885691]
[1733653507105,0.10677026,99347.0,99342.0,0.03885691]
[1733653507354,0.40873026,99347.0,99342.0,0.03885691]
[1733653509166,0.41073026,99347.0,99342.0,0.03885691]
[1733653509352,0.41773026,99347.0,99342.0,0.03885691]
[1733653510415,0.181184,99346.0,99342.0,0.00017241]
[1733653510656,0.10002951,99345.0,99342.0,0.00017241]
[1733653510866,0.10677026,99345.0,99342.0,0.00017241]
[1733653511280,0.40873026,99345.0,99342.0,0.00017241]
[1733653512248,0.41473026,99345.0,99342.0,0.00017241]
[1733653512468,0.41673026,99345.0,99342.0,0.00017241]
[1733653513793,0.08685711,99344.0,99342.0,0.00017241]
[1733653514004,0.10002951,99343.0,99342.0,0.00017241]
[1733653514228,0.10677026,99343.0,99342.0,0.00017241]
[1733653515219,0.11177026,99343.0,99342.0,0.00017241]
[1733653515845,0.11377026,99343.0,99342.0,0.00017241]
[1733653520188,0.01374075,99343.0,99342.0,0.03885691]
[1733653521839,0.007,99343.0,99342.0,0.03885691]
[1733653522269,0.01296003,99343.0,99342.0,0.03885691]
[1733653524989,0.007,99343.0,99342.0,0.03885691]
[1733653528359,0.007,99343.0,99342.0,0.0891501]
[1733653528592,0.007,99343.0,99342.0,0.03885691]
[1733653530580,0.007,99343.0,99342.0,0.03986343]
[1733653536363,0.007,99343.0,99342.0,0.5100781]
[1733653536590,0.007,99343.0,99342.0,0.03885691]
[1733653536840,0.007,99343.0,99342.0,0.5028781]
[1733653536841,0.005,99343.0,99342.0,0.5028781]
[1733653537067,0.006,99343.0,99342.0,0.60168696]
[1733653537517,0.006,99343.0,99342.0,0.78268047]
[1733653537946,0.001,99343.0,99342.0,0.78268047]
[1733653538387,0.004,99343.0,99342.0,0.78268047]
[1733653538662,0.30196,99345.0,99344.0,0.04999921]
[1733653538857,0.30196,99345.0,99344.0,0.15082099]
[1733653539085,0.30196,99345.0,99344.0,0.28649163]
[1733653539305,0.30196,99345.0,99344.0,0.14981455]
[1733653539525,0.30196,99345.0,99344.0,0.15082099]
[1733653540207,0.30196,99345.0,99344.0,0.43095715]
[1733653540431,0.1566424,99345.0,99344.0,0.90207005]
[1733653540657,0.0017328,99380.0,99379.0,0.0386845]
[1733653540876,0.0017328,99380.0,99379.0,0.2977955]
[1733653541094,0.00776356,99380.0,99379.0,0.29678938]
[1733653541342,0.0017328,99380.0,99379.0,0.29678938]
[1733653542022,0.0107328,99380.0,99379.0,0.29696179]
[1733653542230,0.0017328,99380.0,99379.0,0.29696179]
[1733653542749,0.0027328,99380.0,99379.0,0.29696179]
[1733653543194,0.0027328,99380.0,99379.0,0.29796179]
[1733653546094,0.0027328,99380.0,99379.0,0.31794586]
[1733653546847,0.0027328,99380.0,99379.0,0.29796179]
[1733653564783,0.0823328,99380.0,99379.0,0.29796179]
[1733653570358,0.0813328,99380.0,99379.0,0.29796179]
[1733653570572,0.0813328,99380.0,99379.0,0.29696179]
[1733653570792,0.0823328,99380.0,99379.0,0.29796179]
[1733653574953,0.0027328,99380.0,99379.0,0.29796179]
[1733653582706,0.0027328,99380.0,99379.0,0.4479913]
[1733653583513,0.0027328,99380.0,99379.0,0.78150237]
[1733653584197,0.0027328,99380.0,99379.0,0.91702211]
[1733653584420,0.0027328,99380.0,99379.0,0.96155471]
[1733653585571,0.0027328,99380.0,99379.0,1.00761451]
[1733653587682,0.0017328,99380.0,99379.0,0.78050237]
[1733653587904,0.0017328,99380.0,99379.0,0.78150237]
[1733653589233,0.0017328,99380.0,99379.0,0.78194474]
[1733653590166,0.0017328,99380.0,99379.0,0.78094474]
[1733653590400,0.0017328,99380.0,99379.0,0.78294474]
[1733653592223,0.0017328,99380.0,99379.0,0.93294474]
[1733653592456,0.0017328,99380.0,99379.0,1.20434817]
[1733653593148,0.0017328,99380.0,99379.0,0.93294474]
[1733653594094,8e-07,99380.0,99379.0,0.93277568]
[1733653594321,8e-07,99380.0,99379.0,0.95577568]
[1733653595450,8e-07,99380.0,99379.0,1.22692427]
[1733653595659,8e-07,99380.0,99379.0,0.95577568]
[1733653595883,8e-07,99380.0,99379.0,1.33272209]
[1733653596131,8e-07,99380.0,99379.0,0.95577568]
[1733653598947,8e-07,99380.0,99379.0,0.6219913]
[1733653599184,8e-07,99380.0,99379.0,0.9554962]
[1733653599406,0.0017328,99390.0,99389.0,0.46978971]
[1733653599634,0.0017328,99390.0,99389.0,0.92515056]
[1733653600765,0.0017328,99390.0,99389.0,0.59164566]
[1733653600985,0.0017328,99390.0,99389.0,0.92499706]
[1733653601724,0.0037328,99390.0,99389.0,0.92499706]
[1733653602401,8e-07,99390.0,99389.0,0.92799706]
[1733653602625,0.0010008,99390.0,99389.0,0.92799706]
[1733653602890,0.0010008,99390.0,99389.0,0.92499706]
[1733653603130,0.0010008,99390.0,99389.0,0.92799706]
[1733653603329,0.0020008,99390.0,99389.0,0.92799706]
[1733653603836,8e-07,99390.0,99389.0,0.93808478]
[1733653605195,8e-07,99390.0,99389.0,0.96108478]
[1733653605693,0.0751,99409.0,99408.0,0.31975471]
[1733653605926,0.0751,99409.0,99408.0,0.48797519]
[1733653607302,0.0008659,99440.0,99439.0,0.0386845]
[1733653607966,0.1250659,99440.0,99439.0,0.0386845]
[1733653608406,0.13127379,99440.0,99439.0,0.0386845]
[1733653608624,0.13684803,99440.0,99439.0,0.0396845]
[1733653608843,0.15615413,99440.0,99439.0,0.0396845]
[1733653609070,0.14584803,99440.0,99439.0,0.0396845]
[1733653610239,0.14584803,99440.0,99439.0,0.04069006]
[1733653611405,0.14584803,99440.0,99439.0,0.0396845]
[1733653622647,0.42689054,99440.0,99439.0,0.001]
[1733653627110,0.57689054,99440.0,99439.0,0.001]
[1733653632627,0.66704433,99440.0,99439.0,0.001]
[1733653633027,0.57689054,99440.0,99439.0,0.001]
[1733653633251,0.66704433,99440.0,99439.0,0.001]
[1733653633485,0.57689054,99440.0,99439.0,0.001]
[1733653633744,0.66704433,99440.0,99439.0,0.001]
[1733653634165,0.57689054,99440.0,99439.0,0.001]
[1733653636254,0.7123065,99440.0,99439.0,0.001]
[1733653637849,0.7123065,99440.0,99439.0,0.0396845]
[1733653637850,0.23615585,99440.0,99439.0,0.0396845]
[1733653638076,0.09674803,99440.0,99439.0,0.07985805]
[1733653638302,0.09674803,99440.0,99439.0,0.0396845]
[1733653651057,0.09054014,99440.0,99439.0,0.0396845]
[1733653651415,0.09574054,99440.0,99439.0,0.0396845]
[1733653651623,0.02064054,99440.0,99439.0,0.0396845]
[1733653651835,0.02064054,99440.0,99439.0,0.08086289]
[1733653651836,0.01544014,99440.0,99439.0,0.08086289]
[1733653652432,0.01544014,99440.0,99439.0,0.15696289]
[1733653652634,0.01044014,99440.0,99439.0,0.15596289]
[1733653653312,0.00144014,99440.0,99439.0,0.15596289]
[1733653653746,0.01044014,99440.0,99439.0,0.15596289]